bitfinex/quotes_BTCUSD_20241014
["timestamp","ask_amount","ask_price","bid_price","bid_amount"]
[1728913265769,0.001,64788.0,64787.0,0.57591054]
[1728913266583,0.23160479,64793.0,64792.0,0.15434]
[1728913266952,0.002,64798.0,64792.0,0.42155954]
[1728913266958,0.001648,64803.0,64792.0,0.42155954]
[1728913266959,0.001648,64803.0,64802.0,0.154316]
[1728913267244,0.001648,64803.0,64802.0,0.30784447]
[1728913267480,0.001648,64803.0,64802.0,0.57587554]
[1728913267739,0.001648,64803.0,64802.0,0.69980407]
[1728913268512,0.001648,64803.0,64802.0,0.72281735]
[1728913268781,0.001648,64803.0,64802.0,0.72781735]
[1728913269055,0.001648,64803.0,64802.0,0.72281735]
[1728913269324,0.001648,64803.0,64802.0,0.72781735]
[1728913269827,0.001648,64803.0,64802.0,0.72281735]
[1728913270104,0.007648,64803.0,64802.0,0.72981735]
[1728913270395,0.001648,64803.0,64802.0,0.72781735]
[1728913270620,0.002648,64803.0,64802.0,0.73562138]
[1728913271136,0.001648,64803.0,64802.0,0.72762138]
[1728913271402,0.002648,64803.0,64802.0,0.74062138]
[1728913272206,0.003648,64803.0,64802.0,0.74762138]
[1728913272409,0.003648,64803.0,64802.0,0.79375318]
[1728913272658,0.002648,64803.0,64802.0,0.75263906]
[1728913272942,0.003648,64803.0,64802.0,0.82273601]
[1728913273376,0.002648,64803.0,64802.0,0.75263906]
[1728913273595,0.002648,64803.0,64802.0,0.74663906]
[1728913273844,4e-05,64806.0,64805.0,0.169309]
[1728913274067,4e-05,64806.0,64805.0,0.54549352]
[1728913274302,4e-05,64806.0,64805.0,0.53045269]
[1728913274780,4e-05,64806.0,64805.0,0.58446596]
[1728913275015,0.23160479,64813.0,64812.0,0.42732307]
[1728913275264,0.23160479,64813.0,64812.0,0.58085154]
[1728913275486,4e-05,64818.0,64817.0,0.15428]
[1728913275701,4e-05,64818.0,64817.0,0.57583954]
[1728913275914,4e-05,64818.0,64817.0,0.58764336]
[1728913276795,0.00104,64818.0,64817.0,0.58764336]
[1728913277018,0.00104,64818.0,64817.0,0.16533229]
[1728913277234,0.00304,64818.0,64817.0,0.19329496]
[1728913277663,0.157318,64818.0,64817.0,0.19329496]
[1728913277894,0.159318,64818.0,64817.0,0.19329496]
[1728913278131,0.00304,64818.0,64817.0,0.34757496]
[1728913278572,0.00504,64818.0,64817.0,0.19329496]
[1728913278791,0.00504,64818.0,64817.0,0.34757496]
[1728913278792,0.00104,64818.0,64817.0,0.34757496]
[1728913279010,4e-05,64818.0,64817.0,0.34757496]
[1728913279226,0.00104,64818.0,64817.0,0.34757496]
[1728913280135,0.00204,64818.0,64817.0,0.34757496]
[1728913280568,0.00204,64818.0,64817.0,0.34957496]
[1728913280780,4e-05,64818.0,64817.0,0.35150956]
[1728913280993,0.00104,64818.0,64817.0,0.35850956]
[1728913281437,0.00104,64818.0,64817.0,0.35457496]
[1728913281669,4e-05,64818.0,64817.0,0.35150956]
[1728913281886,0.00304,64818.0,64817.0,0.20322956]
[1728913282113,0.00304,64818.0,64817.0,0.35950956]
[1728913282114,0.00204,64818.0,64817.0,0.35950956]
[1728913282368,0.00104,64818.0,64817.0,0.35750956]
[1728913282956,0.00104,64818.0,64817.0,0.35950956]
[1728913283473,4e-05,64818.0,64817.0,0.19922956]
[1728913283731,0.231318,64818.0,64817.0,0.19629496]
[1728913284233,0.327518,64818.0,64817.0,0.003]
[1728913284480,0.327518,64818.0,64817.0,0.00986921]
[1728913284719,0.00204,64818.0,64817.0,0.57783954]
[1728913285218,4e-05,64818.0,64817.0,0.58964335]
[1728913285467,4e-05,64818.0,64817.0,0.98435325]
[1728913285712,4e-05,64818.0,64817.0,0.71632218]
[1728913285955,4e-05,64818.0,64817.0,0.71432218]
[1728913286204,0.00304,64818.0,64817.0,0.71432218]
[1728913286868,0.00808,64818.0,64817.0,0.71532218]
[1728913287089,0.00808,64818.0,64817.0,0.71732218]
[1728913287336,0.002,64831.0,64817.0,0.71732218]
[1728913287337,0.28861479,64833.0,64824.0,0.308524]
[1728913287553,0.28861479,64833.0,64830.0,0.154247]
[1728913287764,0.28861479,64833.0,64832.0,0.154244]
[1728913287984,0.28861479,64833.0,64827.0,0.26803107]
[1728913287985,0.28861479,64833.0,64831.0,0.01159605]
[1728913288203,0.05701,64833.0,64832.0,0.01158121]
[1728913288418,0.05701,64833.0,64832.0,0.18541289]
[1728913288659,0.05701,64833.0,64832.0,0.17383168]
[1728913288884,0.05701,64833.0,64832.0,0.18541289]
[1728913289533,0.05701,64833.0,64832.0,0.40575835]
[1728913289757,0.0948,64836.0,64832.0,0.40575835]
[1728913290028,0.001646,64841.0,64838.0,0.15423]
[1728913290253,0.001646,64841.0,64838.0,0.4198306]
[1728913290467,0.001646,64841.0,64838.0,0.48159015]
[1728913290677,0.001646,64841.0,64838.0,0.33885235]
[1728913291112,0.001646,64841.0,64838.0,0.49308235]
[1728913291364,0.001646,64841.0,64838.0,0.33885235]
[1728913291572,0.001646,64841.0,64838.0,0.44985529]
[1728913292469,0.155869,64841.0,64838.0,0.44985529]
[1728913292716,0.00404,64839.0,64838.0,0.44985529]
[1728913293839,4e-05,64839.0,64838.0,0.44985529]
[1728913294291,4e-05,64839.0,64838.0,0.45185529]
[1728913294743,4e-05,64839.0,64838.0,0.44985529]
[1728913295170,4e-05,64839.0,64838.0,0.45185529]
[1728913295423,4e-05,64839.0,64838.0,0.45385529]
[1728913295654,4e-05,64839.0,64838.0,0.45185529]
[1728913296081,4e-05,64839.0,64838.0,0.45385529]
[1728913297373,0.001686,64839.0,64838.0,0.34285235]
[1728913299624,0.001686,64839.0,64838.0,0.16902067]
[1728913302397,0.155914,64839.0,64838.0,0.16902067]
[1728913302869,0.155914,64839.0,64838.0,0.0154922]
[1728913303092,0.326514,64839.0,64838.0,0.0154922]
[1728913303313,0.34086344,64839.0,64838.0,0.0154922]
[1728913303533,0.34086344,64839.0,64838.0,0.004]
[1728913303984,0.34086344,64839.0,64838.0,0.002]
[1728913304255,0.34286344,64839.0,64838.0,0.002]
[1728913304696,0.154242,64833.0,64832.0,0.06481699]
[1728913304915,0.154242,64833.0,64832.0,0.21834546]
[1728913305132,0.154241,64834.0,64832.0,0.22992667]
[1728913305351,0.154241,64834.0,64833.0,0.2094114]
[1728913305826,0.154241,64834.0,64833.0,0.22097778]
[1728913306915,0.154241,64834.0,64833.0,0.06744931]
[1728913307150,0.154241,64834.0,64833.0,0.01156638]
[1728913307394,0.154244,64832.0,64831.0,0.000823]
[1728913307637,0.154244,64832.0,64831.0,0.15435147]
[1728913308131,0.154244,64832.0,64831.0,0.000823]
[1728913308357,0.154244,64832.0,64831.0,0.01241905]
[1728913308570,0.155244,64832.0,64831.0,0.000823]
[1728913309286,0.156244,64832.0,64831.0,0.000823]
[1728913310024,0.158244,64832.0,64831.0,0.000823]
[1728913310727,0.158284,64832.0,64831.0,0.000823]
[1728913310948,0.17264463,64832.0,64831.0,0.000823]
[1728913311184,0.158284,64832.0,64831.0,0.000823]
[1728913314003,0.24934867,64832.0,64831.0,0.000823]
[1728913314996,0.234984,64832.0,64831.0,0.000823]
[1728913315238,0.24935589,64832.0,64831.0,0.000823]
[1728913316214,0.21935589,64832.0,64831.0,0.000823]
[1728913316493,0.21935589,64832.0,64831.0,0.17465468]
[1728913316494,0.00404,64832.0,64831.0,0.17465468]
[1728913316693,0.00404,64832.0,64831.0,0.23839535]
[1728913316987,0.00404,64832.0,64831.0,0.2499914]
[1728913317245,0.00204,64832.0,64831.0,0.2499914]
[1728913317486,0.00204,64832.0,64831.0,0.07615972]
[1728913317487,0.00404,64832.0,64831.0,0.07615972]
[1728913317722,0.158284,64832.0,64831.0,0.07615972]
[1728913318205,0.156284,64832.0,64831.0,0.07615972]
[1728913318447,0.154284,64832.0,64831.0,0.07615972]
[1728913318684,0.154284,64832.0,64831.0,0.07815972]
[1728913319405,0.154284,64832.0,64831.0,0.07915972]
[1728913320153,0.154284,64832.0,64831.0,0.01541905]
[1728913320654,0.154284,64832.0,64831.0,0.003823]
[1728913321939,4e-05,64832.0,64831.0,0.01541905]
[1728913322174,0.154284,64832.0,64831.0,0.003823]
[1728913322410,4e-05,64832.0,64831.0,0.003823]
[1728913322648,0.154284,64832.0,64831.0,0.003823]
[1728913323137,0.154284,64832.0,64831.0,0.01541905]
[1728913323376,0.154284,64832.0,64831.0,0.003823]
[1728913323611,0.154284,64832.0,64831.0,0.01541905]
[1728913323834,0.154284,64832.0,64831.0,0.003823]
[1728913325719,0.154284,64832.0,64831.0,0.02698031]
[1728913325937,0.154284,64832.0,64831.0,0.01538426]
[1728913326159,0.154284,64832.0,64831.0,0.02698031]
[1728913326369,0.154284,64832.0,64831.0,0.003823]
[1728913327040,0.154284,64832.0,64831.0,0.01538573]
[1728913327737,4e-05,64832.0,64831.0,0.01538573]
[1728913327965,0.154284,64832.0,64831.0,0.01538573]
[1728913328193,0.154284,64832.0,64831.0,0.02698178]
[1728913328431,0.154284,64832.0,64831.0,0.06436111]
[1728913328684,0.154284,64832.0,64831.0,0.02698178]
[1728913328900,0.154284,64832.0,64831.0,0.01538573]
[1728913329133,4e-05,64832.0,64831.0,0.49699288]
[1728913329357,0.001646,64834.0,64833.0,0.015]
[1728913329639,0.001686,64839.0,64838.0,0.17123]
[1728913329860,0.001646,64847.0,64840.0,0.63988836]
[1728913330087,0.001646,64847.0,64840.0,1.05973329]
[1728913330324,0.001646,64847.0,64840.0,0.97248527]
[1728913330591,0.001646,64847.0,64840.0,1.17700054]
[1728913330814,0.001646,64847.0,64840.0,1.04898527]
[1728913331262,0.002646,64841.0,64840.0,1.05598527]
[1728913331484,0.002646,64841.0,64840.0,1.26034254]
[1728913331717,0.001646,64847.0,64844.0,0.017]
[1728913331951,8e-05,64854.0,64853.0,0.192194]
[1728913332192,0.19957548,64855.0,64854.0,0.194192]
[1728913332464,0.19957548,64855.0,64854.0,0.58436026]
[1728913332684,0.23325079,64869.0,64861.0,0.159175]
[1728913332906,0.23325079,64869.0,64861.0,0.49809789]
[1728913333136,0.001688,64862.0,64861.0,0.66843002]
[1728913333354,0.001688,64862.0,64861.0,0.61078285]
[1728913335149,0.002688,64862.0,64861.0,0.61678285]
[1728913335365,0.003688,64862.0,64861.0,0.62078285]
[1728913335598,0.003688,64862.0,64861.0,0.28777617]
[1728913335837,0.003688,64862.0,64861.0,0.44195117]
[1728913338297,0.003688,64862.0,64861.0,0.28777617]
[1728913338514,0.003688,64862.0,64861.0,0.44195117]
[1728913339164,0.003688,64862.0,64861.0,0.28777617]
[1728913339385,0.003688,64862.0,64861.0,0.50297777]
[1728913343715,0.003688,64862.0,64861.0,0.34880277]
[1728913344381,0.003688,64862.0,64861.0,0.50297777]
[1728913346420,0.003688,64862.0,64861.0,0.59017777]
[1728913348438,0.003688,64862.0,64861.0,0.76400945]
[1728913348657,0.003688,64862.0,64861.0,0.91609653]
[1728913348895,0.003688,64862.0,64861.0,0.74226485]
[1728913349183,0.001648,64868.0,64867.0,0.169161]
[1728913349444,0.001648,64868.0,64867.0,0.60284675]
[1728913349680,0.001648,64868.0,64867.0,0.61397483]
[1728913349916,0.001648,64868.0,64867.0,0.68028247]
[1728913350398,0.001646,64871.0,64867.0,0.68028247]
[1728913350399,0.001646,64871.0,64870.0,0.017]
[1728913350636,0.23160479,64895.0,64872.0,0.36798068]
[1728913350877,0.23160479,64895.0,64872.0,0.63278874]
[1728913351419,0.23160479,64880.0,64875.0,0.169142]
[1728913351720,0.23160479,64880.0,64875.0,0.480292]
[1728913351917,0.23160479,64880.0,64875.0,0.49152713]
[1728913352173,0.23160479,64895.0,64875.0,0.49152713]
[1728913353177,0.23160479,64895.0,64875.0,0.50552713]
[1728913353178,0.002648,64876.0,64875.0,0.50552713]
[1728913353937,0.23160479,64895.0,64891.0,0.005]
[1728913354179,0.23160479,64895.0,64894.0,0.66028883]
[1728913354414,0.001646,64899.0,64894.0,0.66028883]
[1728913354415,0.001646,64899.0,64898.0,0.50675036]
[1728913354649,0.001646,64899.0,64898.0,0.67027883]
[1728913354914,0.001646,64899.0,64898.0,0.68117329]
[1728913355855,4e-05,64900.0,64899.0,0.171085]
[1728913356074,4e-05,64900.0,64899.0,0.32461347]
[1728913356300,4e-05,64900.0,64899.0,0.38209102]
[1728913357003,0.0001,64905.0,64904.0,0.50673636]
[1728913357231,0.0001,64905.0,64904.0,0.66026483]
[1728913357472,0.308049,64925.0,64904.0,0.66026483]
[1728913357473,0.308066,64944.0,64911.0,0.005]
[1728913357711,0.153981,64943.0,64937.0,0.153995]
[1728913357952,0.000108,64944.0,64936.0,0.00246236]
[1728913358199,0.000108,64944.0,64930.0,0.48185168]
[1728913358200,0.000108,64944.0,64938.0,0.01276483]
[1728913358467,0.153993,64938.0,64937.0,0.01031734]
[1728913358706,0.03825217,64940.0,64918.0,0.005]
[1728913358934,0.154019,64927.0,64919.0,0.154036]
[1728913359429,0.154019,64927.0,64919.0,0.17739145]
[1728913359659,0.154025,64925.0,64919.0,0.02335545]
[1728913359885,0.154026,64924.0,64919.0,0.02335545]
[1728913360339,0.154022,64926.0,64919.0,0.02335545]
[1728913360574,0.308016,64932.0,64919.0,0.02335545]
[1728913360792,0.102,64950.0,64923.0,0.32785868]
[1728913360793,0.154012,64930.0,64923.0,0.32785868]
[1728913361017,0.154019,64927.0,64920.0,0.154034]
[1728913361244,0.154021,64926.0,64920.0,0.154034]
[1728913361476,0.005,64938.0,64913.0,0.01]
[1728913361477,0.17383168,64932.0,64921.0,0.15352847]
[1728913361701,0.23160479,64936.0,64921.0,0.15352847]
[1728913361702,0.17383168,64924.0,64921.0,0.15352847]
[1728913362034,0.15403,64922.0,64921.0,0.15352847]
[1728913362283,0.383047,64926.0,64921.0,0.15352847]
[1728913362284,0.075,64926.0,64921.0,0.15352847]
[1728913362545,0.154025,64925.0,64921.0,0.16408249]
[1728913362799,0.30805,64925.0,64921.0,0.16408249]
[1728913363050,0.15403,64923.0,64921.0,0.16408249]
[1728913363294,0.15403,64922.0,64921.0,0.16408249]
[1728913363518,0.15403,64922.0,64921.0,0.01055402]
[1728913363955,0.15403,64922.0,64915.0,0.23160479]
[1728913363956,0.308078,64919.0,64915.0,0.23160479]
[1728913364188,0.154043,64917.0,64916.0,0.15352847]
[1728913364437,0.308078,64919.0,64916.0,0.15352847]
[1728913364653,0.32787368,64917.0,64916.0,0.01062801]
[1728913364882,0.154053,64913.0,64906.0,0.02351667]
[1728913365106,0.15405,64914.0,64912.0,0.23160479]
[1728913365328,0.308098,64915.0,64912.0,0.23160479]
[1728913365329,0.154052,64913.0,64912.0,0.15352847]
[1728913365558,0.308086,64917.0,64912.0,0.15352847]
[1728913365800,0.308079,64919.0,64912.0,0.15352847]
[1728913366024,0.17383168,64921.0,64912.0,0.15352847]
[1728913366242,0.308081,64918.0,64912.0,0.15352847]
[1728913366735,0.32787568,64917.0,64916.0,0.001]
[1728913366960,0.62077568,64917.0,64916.0,0.001]
[1728913367201,0.62077568,64917.0,64903.0,0.23160479]
[1728913367202,0.154073,64904.0,64903.0,0.23160479]
[1728913367861,0.154073,64904.0,64903.0,0.02316048]
[1728913368094,0.154095,64895.0,64891.0,0.23160479]
[1728913368331,0.154098,64894.0,64892.0,0.15352847]
[1728913368563,0.17383168,64897.0,64892.0,0.15352847]
[1728913368564,0.154099,64893.0,64892.0,0.15352847]
[1728913368795,0.32793068,64893.0,64892.0,0.15352847]
[1728913369277,0.17383168,64893.0,64892.0,0.15352847]
[1728913369527,0.154096,64895.0,64892.0,0.15352847]
[1728913369766,0.17383168,64898.0,64892.0,0.15352847]
[1728913370027,0.0978,64901.0,64892.0,0.15352847]
[1728913370028,0.308172,64899.0,64892.0,0.15352847]
[1728913370287,0.308172,64899.0,64892.0,0.15452847]
[1728913370579,0.0978,64901.0,64892.0,0.15452847]
[1728913370828,0.0978,64901.0,64892.0,0.15352847]
[1728913371339,0.15409,64897.0,64892.0,0.15552847]
[1728913371570,0.003,64898.0,64892.0,0.15552847]
[1728913372036,0.157089,64898.0,64892.0,0.15552847]
[1728913372222,0.003,64898.0,64892.0,0.30762947]
[1728913372478,0.15409,64897.0,64892.0,0.15452847]
[1728913372713,0.003,64898.0,64893.0,0.23160479]
[1728913372961,0.23160479,64911.0,64903.0,0.154074]
[1728913373220,0.38566279,64911.0,64903.0,0.15352847]
[1728913373457,0.23160479,64911.0,64903.0,0.15352847]
[1728913373678,0.25076,64910.0,64904.0,0.01080562]
[1728913373904,0.0967,64910.0,64904.0,0.01080562]
[1728913374134,0.154067,64907.0,64904.0,0.01080562]
[1728913374355,0.154063,64909.0,64904.0,0.01080562]
[1728913374580,0.154064,64908.0,64904.0,0.01080562]
[1728913374825,0.154071,64905.0,64904.0,0.01080562]
[1728913375079,0.269071,64905.0,64904.0,0.01080562]
[1728913375310,0.154104,64891.0,64890.0,0.23160479]
[1728913375785,0.154104,64891.0,64890.0,0.24261771]
[1728913376017,0.154109,64890.0,64883.0,0.23160479]
[1728913376233,0.308191,64895.0,64890.0,0.01101292]
[1728913376460,0.0805,64896.0,64884.0,0.30764847]
[1728913376461,0.154111,64889.0,64884.0,0.15352847]
[1728913376685,0.0996,64893.0,64882.0,0.23160479]
[1728913376909,0.308207,64892.0,64883.0,0.15352847]
[1728913377127,0.154106,64890.0,64883.0,0.15352847]
[1728913377389,0.154115,64887.0,64883.0,0.15752847]
[1728913377623,0.154115,64887.0,64884.0,0.01110179]
[1728913378555,0.308211,64891.0,64884.0,0.01110179]
[1728913379018,0.154108,64890.0,64884.0,0.01110179]
[1728913379234,0.154112,64888.0,64884.0,0.01110179]
[1728913379679,0.154118,64886.0,64884.0,0.01110179]
[1728913379904,0.154118,64885.0,64884.0,0.01110179]
[1728913380582,0.154132,64880.0,64876.0,0.23160479]
[1728913380803,0.154121,64884.0,64876.0,0.53927026]
[1728913381019,0.154122,64884.0,64877.0,0.1653425]
[1728913381246,0.23160479,64882.0,64877.0,0.0112055]
[1728913381471,0.154134,64879.0,64877.0,0.0112055]
[1728913381698,0.154137,64878.0,64873.0,0.001644]
[1728913381916,0.154134,64879.0,64873.0,0.001644]
[1728913382167,0.391258,64881.0,64873.0,0.001644]
[1728913382168,0.154138,64877.0,64873.0,0.001644]
[1728913382395,0.308265,64880.0,64874.0,0.01124995]
[1728913382588,0.154141,64876.0,64874.0,0.01124995]
[1728913383074,0.154138,64877.0,64874.0,0.01124995]
[1728913383513,0.15414,64876.0,64874.0,0.01124995]
[1728913383738,0.001,64878.0,64874.0,0.01224995]
[1728913383969,0.001,64878.0,64877.0,0.46534179]
[1728913384205,0.007,64880.0,64879.0,0.154133]
[1728913384677,0.007,64880.0,64879.0,0.01117587]
[1728913384934,0.23160479,64892.0,64881.0,0.154127]
[1728913384935,0.38570679,64892.0,64881.0,0.154127]
[1728913385166,0.23160479,64892.0,64879.0,0.15352847]
[1728913385397,0.154105,64891.0,64882.0,0.01113142]
[1728913385636,0.154105,64891.0,64880.0,0.16468952]
[1728913385916,0.154102,64893.0,64883.0,0.01111661]
[1728913386125,0.23160479,64904.0,64890.0,0.2672225]
[1728913386382,0.23160479,64896.0,64895.0,0.154095]
[1728913386641,0.23160479,64904.0,64895.0,0.46171647]
[1728913386894,0.23160479,64904.0,64897.0,0.154088]
[1728913387118,0.23160479,64904.0,64896.0,0.02621134]
[1728913387344,0.23160479,64904.0,64898.0,0.01089446]
[1728913387575,0.1,64910.0,64902.0,0.23160479]
[1728913387793,0.0951,64911.0,64899.0,0.15352847]
[1728913387794,0.32670479,64911.0,64899.0,0.15352847]
[1728913388036,0.32670479,64911.0,64896.0,0.2672225]
[1728913388037,0.32670479,64911.0,64903.0,0.3184229]
[1728913388260,0.32670479,64911.0,64903.0,0.15352847]
[1728913388489,0.32670479,64911.0,64904.0,0.01080562]
[1728913388733,0.32670479,64911.0,64904.0,0.16433409]
[1728913388734,0.0951,64911.0,64904.0,0.16433409]
[1728913389225,0.008,64911.0,64910.0,0.154059]
[1728913389465,0.23160479,64924.0,64910.0,0.15352847]
[1728913389709,0.23160479,64924.0,64917.0,0.2672225]
[1728913389961,0.000822,64928.0,64921.0,0.4212555]
[1728913390462,0.000822,64928.0,64921.0,0.43180952]
[1728913390692,0.000822,64928.0,64921.0,0.43680952]
[1728913391168,0.000822,64928.0,64921.0,0.60033799]
[1728913391430,0.000822,64928.0,64921.0,0.81811369]
[1728913391673,0.000822,64928.0,64921.0,1.08733619]
[1728913391936,0.001822,64922.0,64921.0,0.83411369]
[1728913392163,0.001822,64922.0,64921.0,1.10133619]
[1728913392428,0.000822,64922.0,64921.0,1.1561159]
[1728913392667,0.000822,64922.0,64921.0,0.84757847]
[1728913392894,0.000822,64922.0,64921.0,1.1377402]
[1728913393128,0.001822,64922.0,64921.0,1.1517402]
[1728913393383,0.000822,64922.0,64921.0,1.1377402]
[1728913393633,0.000822,64922.0,64921.0,1.06896049]
[1728913393890,0.002822,64922.0,64921.0,1.09696049]
[1728913394137,0.001822,64922.0,64921.0,1.1517402]
[1728913394368,0.000822,64928.0,64927.0,0.194019]
[1728913394633,0.23242779,64941.0,64940.0,0.158988]
[1728913394918,0.0171889,64947.0,64945.0,0.005]
[1728913395156,0.0171889,64947.0,64946.0,0.98302212]
[1728913395403,0.0171889,64947.0,64946.0,0.99013173]
[1728913395664,0.0171889,64947.0,64946.0,0.99213173]
[1728913396167,0.0171889,64947.0,64946.0,0.72290923]
[1728913396905,0.0181889,64947.0,64946.0,0.74656043]
[1728913397148,0.0171889,64947.0,64946.0,0.74556043]
[1728913397389,0.0181889,64947.0,64946.0,0.74856043]
[1728913397638,0.0181889,64947.0,64946.0,0.74956043]
[1728913397639,0.0191889,64947.0,64946.0,0.74956043]
[1728913398134,0.0181889,64947.0,64946.0,0.74856043]
[1728913398391,0.0081889,64947.0,64946.0,0.74856043]
[1728913398649,0.0081889,64947.0,64946.0,1.02978293]
[1728913398907,0.0071889,64947.0,64946.0,0.74556043]
[1728913399169,0.0071889,64947.0,64946.0,0.73656043]
[1728913399429,0.0071889,64947.0,64946.0,0.75956043]
[1728913399716,0.0071889,64947.0,64946.0,1.01278293]
[1728913399982,0.0071889,64947.0,64946.0,0.75956043]
[1728913400283,0.0071889,64947.0,64946.0,1.01478293]
[1728913400501,0.0071889,64947.0,64946.0,1.02878293]
[1728913400747,0.0071889,64947.0,64946.0,1.04278293]
[1728913401055,0.0071889,64947.0,64946.0,1.02878293]
[1728913401277,0.0071889,64947.0,64946.0,1.04278293]
[1728913401740,0.0071889,64947.0,64946.0,1.02878293]
[1728913401995,0.0071889,64947.0,64946.0,1.01478293]
[1728913402250,0.0071889,64947.0,64946.0,1.02878293]
[1728913402489,9e-07,64947.0,64946.0,1.29278293]
[1728913402720,9e-07,64947.0,64946.0,1.27878293]
[1728913403222,9e-07,64947.0,64946.0,1.27978293]
[1728913403450,9e-07,64947.0,64946.0,0.99856043]
[1728913403699,0.0010009,64947.0,64946.0,0.99956043]
[1728913404202,0.0008229,64947.0,64946.0,0.99756043]
[1728913404705,0.0018229,64947.0,64946.0,1.26578293]
[1728913404936,0.0018229,64947.0,64946.0,0.99856043]
[1728913405180,0.0008229,64947.0,64946.0,1.26478293]
[1728913405417,0.0018229,64947.0,64946.0,1.26578293]
[1728913406418,0.0018229,64947.0,64946.0,1.27712943]
[1728913406654,0.0018229,64947.0,64946.0,1.27512943]
[1728913406916,0.0018229,64947.0,64946.0,1.00790693]
[1728913407158,0.0018229,64947.0,64946.0,0.99756043]
[1728913407631,0.0018229,64947.0,64946.0,1.26678293]
[1728913407950,0.0018229,64947.0,64946.0,1.27712943]
[1728913408039,0.0008229,64947.0,64946.0,1.27412943]
[1728913408252,0.0018229,64947.0,64946.0,1.27812943]
[1728913408708,0.0018229,64947.0,64946.0,1.27712943]
[1728913408930,0.0018229,64947.0,64946.0,1.29112943]
[1728913409391,9e-07,64947.0,64946.0,1.27712943]
[1728913409619,0.23160479,64960.0,64959.0,0.15869809]
[1728913409845,0.23160479,64960.0,64959.0,0.60244906]
[1728913410071,0.000823,64964.0,64963.0,0.153933]
[1728913410297,0.0924,64985.0,64963.0,0.153933]
[1728913410298,0.23160479,64979.0,64969.0,0.11475509]
[1728913410555,0.000823,64987.0,64986.0,0.153879]
[1728913410776,0.000823,64987.0,64986.0,0.44731284]
[1728913411226,0.000823,64987.0,64986.0,0.57462997]
[1728913411448,0.000823,64987.0,64986.0,0.99608985]
[1728913411679,0.000823,64987.0,64986.0,0.79248506]
[1728913412129,0.000823,64987.0,64986.0,0.80648506]
[1728913412346,0.000823,64987.0,64986.0,0.80611793]
[1728913412590,0.000823,64992.0,64991.0,0.4210895]
[1728913412813,0.000823,64992.0,64991.0,0.30739547]
[1728913413508,0.000823,64992.0,64991.0,0.57461797]
[1728913413730,0.000823,64992.0,64991.0,0.15352847]
[1728913413961,0.00024491,64989.0,64988.0,0.153874]
[1728913414188,0.08,64990.0,64986.0,0.014]
[1728913414189,0.00024491,64987.0,64986.0,0.014]
[1728913414409,0.15412091,64987.0,64986.0,0.014]
[1728913414639,0.15412091,64987.0,64980.0,0.23160479]
[1728913414640,0.15413591,64981.0,64980.0,0.23160479]
[1728913414872,0.00024491,64981.0,64980.0,0.53902626]
[1728913415091,0.00024491,64981.0,64980.0,0.38513326]
[1728913415315,0.00024491,64981.0,64980.0,0.15352847]
[1728913415570,0.00024491,64981.0,64943.0,0.53956379]
[1728913415571,0.00024491,64970.0,64964.0,0.23160479]
[1728913415765,0.00024491,64970.0,64965.0,0.15352847]
[1728913415980,0.00024491,64970.0,64965.0,0.46138347]
[1728913416198,0.00024491,64970.0,64965.0,0.15352847]
[1728913416444,0.00024491,64966.0,64965.0,0.15352847]
[1728913417589,0.00224491,64966.0,64965.0,0.15352847]
[1728913418039,0.00224491,64966.0,64965.0,0.30745747]
[1728913418258,0.00024491,64966.0,64965.0,0.15352847]
[1728913418490,0.00024491,64966.0,64965.0,0.30945747]
[1728913418708,0.00028491,64966.0,64965.0,0.15552847]
[1728913418926,0.00028491,64966.0,64965.0,0.30945747]
[1728913419142,0.00028491,64966.0,64965.0,0.15552847]
[1728913419362,4e-05,64966.0,64965.0,0.31045747]
[1728913419808,4e-05,64966.0,64965.0,0.80928476]
[1728913420026,4e-05,64966.0,64965.0,0.58043506]
[1728913420273,4e-05,64966.0,64965.0,0.58343506]
[1728913420757,4e-05,64966.0,64965.0,0.58043506]
[1728913420978,4e-05,64966.0,64965.0,0.60343506]
[1728913421201,0.00104,64966.0,64965.0,0.58367997]
[1728913421451,0.00104,64966.0,64965.0,0.58843506]
[1728913421666,4e-05,64966.0,64965.0,0.57943506]
[1728913422105,4e-05,64966.0,64965.0,0.6270573]
[1728913422330,4e-05,64966.0,64965.0,0.6410573]
[1728913422553,4e-05,64970.0,64969.0,0.15867409]
[1728913422774,4e-05,64970.0,64969.0,0.3828248]
[1728913423429,4e-05,64970.0,64969.0,0.6500473]
[1728913423858,0.00104,64970.0,64969.0,0.6640473]
[1728913424091,0.00104,64970.0,64969.0,0.89565209]
[1728913424315,0.00104,64970.0,64969.0,0.7740473]
[1728913424563,0.000823,64992.0,64988.0,0.153874]
[1728913424782,0.23160479,64990.0,64988.0,0.35502471]
[1728913425010,0.000823,64992.0,64988.0,0.35502471]
[1728913426116,0.000823,64992.0,64988.0,0.35802471]
[1728913426569,0.000823,64992.0,64988.0,0.36202471]
[1728913427247,0.000823,64992.0,64988.0,0.35802471]
[1728913427465,0.000861,64989.0,64988.0,0.3897798]
[1728913427921,0.000861,64989.0,64988.0,0.36202471]
[1728913428144,0.000861,64989.0,64988.0,0.35502471]
[1728913428420,0.000823,64992.0,64991.0,0.44884459]
[1728913428649,0.000823,64992.0,64991.0,0.7599953]
[1728913429095,1e-06,64992.0,64991.0,0.7599953]
[1728913429326,1e-06,64992.0,64991.0,0.7619953]
[1728913429548,4e-05,65000.0,64999.0,0.44882559]
[1728913429767,4e-05,65000.0,64999.0,0.6499763]
[1728913430484,4e-05,65000.0,64999.0,1.0271988]
[1728913431237,0.00104,65000.0,64999.0,1.0371988]
[1728913431692,0.00104,65000.0,64999.0,1.06793436]
[1728913432126,0.00104,65000.0,64999.0,1.07793431]
[1728913432341,0.00104,65000.0,64999.0,1.07793432]
[1728913432566,0.00104,65000.0,64999.0,1.12346956]
[1728913432792,0.00104,65000.0,64999.0,0.84825306]
[1728913433022,0.00104,65000.0,64999.0,0.82549692]
[1728913433238,0.00104,65000.0,64999.0,1.09271942]
[1728913433719,0.00104,65000.0,64999.0,1.13822465]
[1728913433973,0.00104,65000.0,64999.0,0.7799763]
[1728913434213,0.00104,65000.0,64999.0,1.13822465]
[1728913434719,0.00104,65000.0,64999.0,1.16121029]
[1728913434979,0.0171889,65013.0,65007.0,0.00475509]
[1728913435235,0.0171889,65013.0,65009.0,0.57457497]
[1728913435463,0.0171889,65013.0,65009.0,0.66779329]